fUSD/lending_fUSD_20241223
["ID","MTS","AMOUNT","RATE_DAILY","PERIOD"]
[346471183,1734988234045,-500.0,0.00013698,2]
[346471184,1734988234055,-919.83,0.00013698,2]
[346471185,1734988234064,-500.0,0.00013698,2]
[346471186,1734988234074,-500.0,0.00013698,2]
[346471187,1734988234084,-1729.79,0.00013698,2]
[346471188,1734988234094,-500.0,0.00013698,2]
[346471189,1734988234103,-500.0,0.00013698,2]
[346471190,1734988234112,-500.0,0.00013698,2]
[346471191,1734988234122,-1030.3,0.00013698,2]
[346471192,1734988234132,-500.0,0.00013698,2]
[346471193,1734988234143,-500.0,0.00013698,2]
[346471194,1734988234153,-500.0,0.00013698,2]
[346471195,1734988234163,-765.04681053,0.00013698,2]
[346471209,1734988234781,-278.22318947,0.00013698,2]
[346471211,1734988234792,-500.0,0.00013698,2]
[346471213,1734988234802,-500.0,0.00013698,2]
[346471215,1734988234812,-500.0,0.00013698,2]
[346471217,1734988234821,-511.77,0.00013698,2]
[346471219,1734988234830,-500.0,0.00013698,2]
[346471220,1734988234839,-500.0,0.00013698,2]
[346471222,1734988234849,-741.54,0.00013698,2]
[346471224,1734988234858,-500.0,0.00013698,2]
[346471226,1734988234867,-1045.76,0.00013698,2]
[346471228,1734988234877,-500.0,0.00013698,2]
[346471230,1734988234886,-922.42,0.00013698,2]
[346471232,1734988234896,-500.0,0.00013698,2]
[346471234,1734988234906,-500.0,0.00013698,2]
[346471236,1734988234920,-500.0,0.00013698,2]
[346471239,1734988234930,-500.0,0.00013698,2]
[346471241,1734988234939,-500.0,0.00013698,2]
[346471242,1734988234949,-500.0,0.00013698,2]
[346471244,1734988234958,-500.0,0.00013698,2]
[346471246,1734988234968,-500.0,0.00013698,2]
[346471248,1734988234978,-598.74,0.00013698,2]
[346471251,1734988234988,-500.0,0.00013698,2]
[346471253,1734988234998,-500.0,0.00013698,2]
[346471254,1734988235008,-500.0,0.00013698,2]
[346471256,1734988235017,-524.11,0.00013698,2]
[346471259,1734988235028,-516.09,0.00013698,2]
[346471261,1734988235037,-332.11100491,0.00013698,2]
[346471263,1734988235047,-700.0,0.00013698,2]
[346471264,1734988235056,-948.68,0.00013698,2]
[346471266,1734988235065,-599.16,0.00013698,2]
[346471268,1734988235076,-500.0,0.00013698,2]
[346471270,1734988235086,-1055.17,0.00013698,2]
[346471272,1734988235095,-500.0,0.00013698,2]
[346471274,1734988235105,-500.0,0.00013698,2]
[346471276,1734988235114,-500.0,0.00013698,2]
[346471278,1734988235124,-1435.79,0.00013698,2]
[346471280,1734988235133,-500.0,0.00013698,2]
[346471282,1734988235142,-799.77,0.00013698,2]
[346471284,1734988235152,-699.26,0.00013698,2]
[346471286,1734988235161,-607.07,0.00013698,2]
[346471288,1734988235175,-500.0,0.00013698,2]
[346471290,1734988235185,-500.0,0.00013698,2]
[346471292,1734988235194,-500.0,0.00013698,2]
[346471294,1734988235203,-525.45901526,0.00013698,2]
[346471296,1734988235212,-500.0,0.00013698,2]
[346471298,1734988235222,-610.71873946,0.00013698,2]
[346471300,1734988235231,-500.0,0.00013698,2]
[346471302,1734988235240,-500.0,0.00013698,2]
[346471304,1734988235249,-570.4,0.00013698,2]
[346471306,1734988235258,-773.17,0.00013698,2]
[346471308,1734988235267,-500.0,0.00013698,2]
[346471310,1734988235276,-500.0,0.00013698,2]
[346471312,1734988235285,-500.0,0.00013698,2]
[346471314,1734988235294,-500.0,0.00013698,2]
[346471316,1734988235303,-500.0,0.00013698,2]
[346471318,1734988235312,-500.0,0.00013698,2]
[346471320,1734988235322,-500.0,0.00013698,2]
[346471322,1734988235331,-500.0,0.00013698,2]
[346471324,1734988235339,-500.0,0.00013698,2]
[346471326,1734988235348,-500.0,0.00013698,2]
[346471328,1734988235357,-507.43,0.00013698,2]
[346471330,1734988235367,-500.0,0.00013698,2]
[346471332,1734988235376,-500.0,0.00013698,2]
[346471334,1734988235385,-1300.23,0.00013698,2]
[346471336,1734988235394,-500.0,0.00013698,2]
[346471338,1734988235404,-500.0,0.00013698,2]
[346471340,1734988235413,-500.0,0.00013698,2]
[346471342,1734988235426,-500.0,0.00013698,2]
[346471344,1734988235435,-500.0,0.00013698,2]
[346471346,1734988235444,-500.0,0.00013698,2]
[346471348,1734988235453,-500.0,0.00013698,2]
[346471350,1734988235462,-590.59,0.00013698,2]
[346471352,1734988235471,-500.0,0.00013698,2]
[346471354,1734988235481,-500.0,0.00013698,2]
[346471356,1734988235490,-500.0,0.00013698,2]
[346471358,1734988235499,-1569.62,0.00013698,2]
[346471360,1734988235508,-2716.42,0.00013698,2]
[346471362,1734988235517,-503.42428456,0.00013698,2]
[346471364,1734988235527,-557.68,0.00013698,2]
[346471366,1734988235536,-753.99,0.00013698,2]
[346471368,1734988235545,-500.0,0.00013698,2]
[346471370,1734988235554,-500.0,0.00013698,2]
[346471372,1734988235564,-592.25,0.00013698,2]
[346471374,1734988235573,-500.57417738,0.00013698,2]
[346471376,1734988235583,-500.0,0.00013698,2]
[346471378,1734988235593,-500.0,0.00013698,2]
[346471380,1734988235607,-500.0,0.00013698,2]
[346471382,1734988235616,-516.46078625,0.00013698,2]
[346471384,1734988235625,-500.0,0.00013698,2]
[346471386,1734988235634,-500.0,0.00013698,2]
[346471388,1734988235643,-1122.06,0.00013698,2]
[346471390,1734988235652,-500.0,0.00013698,2]
[346471392,1734988235662,-500.0,0.00013698,2]
[346471394,1734988235674,-500.0,0.00013698,2]
[346471395,1734988235684,-470.71805144,0.00013698,2]
[346471396,1734988235693,-1126.96,0.00013698,2]
[346471397,1734988235703,-441.11269871,0.00013698,2]
[346471398,1734988235713,-941.91,0.00013698,2]
[346471399,1734988235722,-868.21,0.00013698,2]
[346471400,1734988235732,-500.0,0.00013698,2]
[346471401,1734988235741,-500.0,0.00013698,2]
[346471402,1734988235750,-685.71,0.00013698,2]
[346471403,1734988235760,-664.38,0.00013698,2]
[346471404,1734988235770,-500.0,0.00013698,2]
[346471405,1734988235779,-500.0,0.00013698,2]
[346471406,1734988235789,-500.0,0.00013698,2]
[346471407,1734988235798,-500.0,0.00013698,2]
[346471408,1734988235808,-500.0,0.00013698,2]
[346471409,1734988235818,-746.76,0.00013698,2]
[346471410,1734988235829,-500.0,0.00013698,2]
[346471411,1734988235838,-500.0,0.00013698,2]
[346471412,1734988235847,-500.0,0.00013698,2]
[346471413,1734988235856,-500.0,0.00013698,2]
[346471414,1734988235866,-500.0,0.00013698,2]
[346471415,1734988235876,-500.0,0.00013698,2]
[346471416,1734988235885,-500.0,0.00013698,2]
[346471417,1734988235895,-1824.09,0.00013698,2]
[346471418,1734988235904,-500.0,0.00013698,2]
[346471419,1734988235914,-500.0,0.00013698,2]
[346471420,1734988235926,-500.0,0.00013698,2]
[346471421,1734988235936,-602.84,0.00013698,2]
[346471422,1734988235945,-500.0,0.00013698,2]
[346471423,1734988235954,-500.0,0.00013698,2]
[346471424,1734988235964,-500.0,0.00013698,2]
[346471425,1734988235973,-500.0,0.00013698,2]
[346471426,1734988235983,-500.0,0.00013698,2]
[346471427,1734988235992,-500.0,0.00013698,2]
[346471428,1734988236001,-1552.85,0.00013698,2]
[346471429,1734988236011,-498.90340882,0.00013698,2]
[346471430,1734988236020,-500.0,0.00013698,2]
[346471431,1734988236030,-516.14,0.00013698,2]
[346471432,1734988236039,-500.0,0.00013698,2]
[346471433,1734988236048,-500.0,0.00013698,2]
[346471434,1734988236058,-500.0,0.00013698,2]
[346471435,1734988236067,-733.79,0.00013698,2]
[346471436,1734988236076,-500.0,0.00013698,2]
[346471437,1734988236085,-500.0,0.00013698,2]
[346471438,1734988236095,-500.0,0.00013698,2]
[346471439,1734988236104,-560.29,0.00013698,2]
[346471440,1734988236113,-500.0,0.00013698,2]
[346471441,1734988236123,-500.0,0.00013698,2]
[346471442,1734988236132,-1524.63,0.00013698,2]
[346471443,1734988236142,-1264.98,0.00013698,2]
[346471444,1734988236156,-500.0,0.00013698,2]
[346471445,1734988236165,-370.81705403,0.00013698,2]
[346471446,1734988236177,-500.0,0.00013698,2]
[346471447,1734988236186,-500.0,0.00013698,2]
[346471448,1734988236196,-500.0,0.00013698,2]
[346471449,1734988236206,-500.0,0.00013698,2]
[346471450,1734988236216,-500.0,0.00013698,2]
[346471451,1734988236226,-500.0,0.00013698,2]
[346471452,1734988236235,-500.0,0.00013698,2]
[346471453,1734988236245,-852.52,0.00013698,2]
[346471454,1734988236255,-1012.98,0.00013698,2]
[346471455,1734988236265,-500.0,0.00013698,2]
[346471456,1734988236590,-1184.97,0.00013698,2]
[346471457,1734988236600,-892.78,0.00013698,2]
[346471458,1734988236612,-1572.57,0.00013698,2]
[346471459,1734988236622,-500.0,0.00013698,2]
[346471460,1734988236632,-500.0,0.00013698,2]
[346471461,1734988236641,-746.37,0.00013698,2]
[346471462,1734988236651,-500.0,0.00013698,2]
[346471463,1734988236661,-500.0,0.00013698,2]
[346471464,1734988236671,-1764.32,0.00013698,2]
[346471465,1734988236682,-504.32,0.00013698,2]
[346471466,1734988236692,-1827.09,0.00013698,2]
[346471467,1734988236702,-500.0,0.00013698,2]
[346471468,1734988236712,-500.0,0.00013698,2]
[346471469,1734988236721,-500.0,0.00013698,2]
[346471470,1734988236731,-500.0,0.00013698,2]
[346471471,1734988236740,-500.0,0.00013698,2]
[346471472,1734988236750,-500.0,0.00013698,2]
[346471473,1734988236759,-500.0,0.00013698,2]
[346471474,1734988236769,-500.0,0.00013698,2]
[346471475,1734988236779,-500.0,0.00013698,2]
[346471476,1734988236789,-595.9,0.00013698,2]
[346471477,1734988236799,-500.0,0.00013698,2]
[346471478,1734988236808,-500.0,0.00013698,2]
[346471479,1734988236818,-535.47388484,0.00013698,2]
[346471480,1734988236827,-500.0,0.00013698,2]
[346471481,1734988236837,-1559.58,0.00013698,2]
[346471482,1734988236847,-883.67,0.00013698,2]
[346471483,1734988236857,-1257.42,0.00013698,2]
[346471484,1734988236866,-500.0,0.00013698,2]
[346471485,1734988236875,-500.0,0.00013698,2]
[346471486,1734988236885,-500.0,0.00013698,2]
[346471487,1734988236895,-500.0,0.00013698,2]
[346471488,1734988236905,-500.0,0.00013698,2]
[346471489,1734988236915,-500.0,0.00013698,2]
[346471490,1734988236927,-500.0,0.00013698,2]
[346471491,1734988236937,-1819.88,0.00013698,2]
[346471492,1734988236947,-517.29,0.00013698,2]
[346471493,1734988236957,-500.0,0.00013698,2]
[346471494,1734988236966,-500.0,0.00013698,2]
[346471495,1734988236976,-573.10732797,0.00013698,2]
[346471496,1734988236985,-500.0,0.00013698,2]
[346471497,1734988236995,-503.23254909,0.00013698,2]
[346471498,1734988237005,-500.0,0.00013698,2]
[346471499,1734988237014,-500.0,0.00013698,2]
[346471500,1734988237024,-1641.11,0.00013698,2]
[346471501,1734988237034,-500.0,0.00013698,2]
[346471502,1734988237043,-1293.77,0.00013698,2]
[346471503,1734988237054,-500.0,0.00013698,2]
[346471504,1734988237063,-1058.56,0.00013698,2]
[346471505,1734988237073,-1052.82,0.00013698,2]
[346471506,1734988237083,-500.0,0.00013698,2]
[346471507,1734988237093,-943.54,0.00013698,2]
[346471508,1734988237103,-529.07,0.00013698,2]
[346471509,1734988237112,-500.0,0.00013698,2]
[346471510,1734988237121,-681.97,0.00013698,2]
[346471511,1734988237131,-706.85,0.00013698,2]
[346471512,1734988237141,-500.0,0.00013698,2]
[346471513,1734988237151,-500.0,0.00013698,2]
[346471514,1734988237160,-503.77,0.00013698,2]
[346471515,1734988237172,-608.03008007,0.00013698,2]
[346471516,1734988237182,-500.0,0.00013698,2]
[346471517,1734988237191,-500.0,0.00013698,2]
[346471518,1734988237202,-500.0,0.00013698,2]
[346471519,1734988237211,-500.0,0.00013698,2]
[346471521,1734988237221,-961.47,0.00013698,2]
[346471523,1734988237230,-500.0,0.00013698,2]
[346471524,1734988237239,-500.0,0.00013698,2]
[346471525,1734988237248,-630.99,0.00013698,2]
[346471526,1734988237258,-500.0,0.00013698,2]
[346471527,1734988237267,-500.0,0.00013698,2]
[346471528,1734988237276,-500.0,0.00013698,2]
[346471530,1734988237285,-759.46,0.00013698,2]
[346471531,1734988237294,-500.0,0.00013698,2]
[346471533,1734988237304,-1391.02,0.00013698,2]
[346471534,1734988237313,-500.0,0.00013698,2]
[346471535,1734988237322,-500.0,0.00013698,2]
[346471536,1734988237331,-1806.24,0.00013698,2]
[346471537,1734988237340,-183.88472927,0.00013698,2]
[346471538,1734988237348,-500.0,0.00013698,2]
[346471539,1734988237358,-500.0,0.00013698,2]
[346471540,1734988237366,-500.0,0.00013698,2]
[346471541,1734988237376,-500.0,0.00013698,2]
[346471542,1734988237385,-796.81,0.00013698,2]
[346471544,1734988237394,-500.0,0.00013698,2]
[346471546,1734988237404,-533.71,0.00013698,2]
[346471548,1734988237413,-500.0,0.00013698,2]
[346471549,1734988237423,-969.33,0.00013698,2]
[346471550,1734988237432,-895.27,0.00013698,2]
[346471551,1734988237442,-500.4842734,0.00013698,2]
[346471552,1734988237451,-500.0,0.00013698,2]
[346471553,1734988237459,-508.62,0.00013698,2]
[346471554,1734988237468,-500.0,0.00013698,2]
[346471555,1734988237477,-500.0,0.00013698,2]
[346471556,1734988237486,-901.73,0.00013698,2]
[346471557,1734988237495,-946.44,0.00013698,2]
[346471558,1734988237504,-500.0,0.00013698,2]
[346471559,1734988237513,-645.32431095,0.00013698,2]
[346471560,1734988237522,-1024.24,0.00013698,2]
[346471561,1734988237532,-500.0,0.00013698,2]
[346471562,1734988237541,-500.0,0.00013698,2]
[346471563,1734988237550,-500.0,0.00013698,2]
[346471564,1734988237559,-500.0,0.00013698,2]
[346471565,1734988237568,-500.0,0.00013698,2]
[346471566,1734988237577,-494.66175297,0.00013698,2]
[346471567,1734988237587,-949.09,0.00013698,2]
[346471568,1734988237596,-500.0,0.00013698,2]
[346471569,1734988237608,-500.0,0.00013698,2]
[346471570,1734988237617,-1140.87,0.00013698,2]
[346471571,1734988237626,-1710.37,0.00013698,2]
[346471572,1734988237636,-500.0,0.00013698,2]
[346471573,1734988237646,-500.0,0.00013698,2]
[346471574,1734988237655,-500.0,0.00013698,2]
[346471575,1734988237664,-500.0,0.00013698,2]
[346471576,1734988237675,-500.0,0.00013698,2]
[346471577,1734988237686,-500.0,0.00013698,2]
[346471578,1734988237695,-500.0,0.00013698,2]
[346471579,1734988237704,-652.46,0.00013698,2]
[346471580,1734988237713,-598.04,0.00013698,2]
[346471581,1734988237722,-500.0,0.00013698,2]
[346471582,1734988237731,-500.0,0.00013698,2]
[346471583,1734988237740,-500.0,0.00013698,2]
[346471584,1734988237749,-500.0,0.00013698,2]
[346471586,1734988237758,-500.0,0.00013698,2]
[346471588,1734988237768,-623.52,0.00013698,2]
[346471590,1734988237777,-500.0,0.00013698,2]
[346471592,1734988237786,-500.0,0.00013698,2]
[346471594,1734988237795,-500.0,0.00013698,2]
[346471595,1734988237804,-500.0,0.00013698,2]
[346471596,1734988237814,-1234.31,0.00013698,2]
[346471597,1734988237823,-500.0,0.00013698,2]
[346471598,1734988237832,-500.0,0.00013698,2]
[346471599,1734988237843,-500.0,0.00013698,2]
[346471600,1734988237852,-500.0,0.00013698,2]
[346471601,1734988237861,-500.0,0.00013698,2]
[346471602,1734988237871,-500.0,0.00013698,2]
[346471603,1734988237880,-500.0,0.00013698,2]
[346471604,1734988237889,-1501.58,0.00013698,2]
[346471605,1734988237898,-500.0,0.00013698,2]
[346471606,1734988237908,-500.0,0.00013698,2]
[346471607,1734988237917,-975.89,0.00013698,2]
[346471608,1734988237928,-502.0736029,0.00013698,2]
[346471609,1734988237938,-500.0,0.00013698,2]
[346471610,1734988237947,-500.0,0.00013698,2]
[346471611,1734988237956,-500.0,0.00013698,2]
[346471612,1734988237966,-500.0,0.00013698,2]
[346471613,1734988237975,-828.78,0.00013698,2]
[346471614,1734988237984,-988.19,0.00013698,2]
[346471615,1734988237993,-500.0,0.00013698,2]
[346471616,1734988238002,-500.0,0.00013698,2]
[346471617,1734988238012,-500.0,0.00013698,2]
[346471618,1734988238021,-500.0,0.00013698,2]
[346471619,1734988238030,-500.0,0.00013698,2]
[346471620,1734988238039,-792.17,0.00013698,2]
[346471621,1734988238050,-500.0,0.00013698,2]
[346471622,1734988238059,-500.0,0.00013698,2]
[346471623,1734988238068,-500.0,0.00013698,2]
[346471624,1734988238077,-500.0,0.00013698,2]
[346471625,1734988238086,-500.0,0.00013698,2]
[346471626,1734988238095,-500.0,0.00013698,2]
[346471627,1734988238105,-500.0,0.00013698,2]
[346471628,1734988238114,-500.0,0.00013698,2]
[346471629,1734988238124,-500.0,0.00013698,2]
[346471630,1734988238133,-500.0,0.00013698,2]
[346471631,1734988238144,-500.46111972,0.00013698,2]
[346471632,1734988238154,-500.0,0.00013698,2]
[346471633,1734988238163,-1035.19,0.00013698,2]
[346471634,1734988238173,-500.0,0.00013698,2]
[346471635,1734988238182,-908.35,0.00013698,2]
[346471636,1734988238192,-507.76583916,0.00013698,2]
[346471637,1734988238201,-718.44,0.00013698,2]
[346471638,1734988238210,-500.0,0.00013698,2]
[346471639,1734988238219,-500.0,0.00013698,2]
[346471640,1734988238228,-500.0,0.00013698,2]
[346471641,1734988238237,-502.15957649,0.00013698,2]
[346471642,1734988238246,-507.08110093,0.00013698,2]
[346471643,1734988238255,-500.0,0.00013698,2]
[346471644,1734988238264,-500.0,0.00013698,2]
[346471645,1734988238273,-500.0,0.00013698,2]
[346471646,1734988238282,-500.0,0.00013698,2]
[346471647,1734988238291,-500.0,0.00013698,2]
[346471648,1734988238300,-1606.05,0.00013698,2]
[346471649,1734988238310,-500.0,0.00013698,2]
[346471650,1734988238319,-500.0,0.00013698,2]
[346471651,1734988238328,-500.0,0.00013698,2]
[346471652,1734988238337,-500.0,0.00013698,2]
[346471653,1734988238346,-502.53061393,0.00013698,2]
[346471654,1734988238355,-505.60316323,0.00013698,2]
[346471655,1734988238364,-500.0,0.00013698,2]
[346471656,1734988238373,-500.0,0.00013698,2]
[346471657,1734988238382,-391.82563315,0.00013698,2]
[346471658,1734988238391,-500.0,0.00013698,2]
[346471659,1734988238400,-503.47044237,0.00013698,2]
[346471660,1734988238411,-500.0,0.00013698,2]
[346471661,1734988238421,-500.0,0.00013698,2]
[346471662,1734988238430,-504.8413368,0.00013698,2]
[346471663,1734988238439,-2099.88,0.00013698,2]
[346471664,1734988238449,-502.2826866,0.00013698,2]
[346471665,1734988238458,-500.0,0.00013698,2]
[346471666,1734988238467,-500.0,0.00013698,2]
[346471667,1734988238477,-500.0,0.00013698,2]
[346471668,1734988238486,-500.0,0.00013698,2]
[346471669,1734988238495,-1862.98,0.00013698,2]
[346471670,1734988238504,-500.0,0.00013698,2]
[346471671,1734988238513,-500.0,0.00013698,2]
[346471672,1734988238523,-500.0,0.00013698,2]
[346471673,1734988238531,-500.0,0.00013698,2]
[346471674,1734988238542,-776.63,0.00013698,2]
[346471675,1734988238553,-500.0,0.00013698,2]
[346471676,1734988238562,-500.0,0.00013698,2]
[346471677,1734988238572,-500.0,0.00013698,2]
[346471678,1734988238581,-500.0,0.00013698,2]
[346471679,1734988238590,-500.0,0.00013698,2]
[346471680,1734988238601,-500.0,0.00013698,2]
[346471681,1734988238613,-500.0,0.00013698,2]
[346471682,1734988238622,-500.0,0.00013698,2]
[346471683,1734988238637,-500.0,0.00013698,2]
[346471684,1734988238649,-1798.32,0.00013698,2]
[346471685,1734988238658,-500.0,0.00013698,2]
[346471686,1734988238667,-581.21,0.00013698,2]
[346471687,1734988238680,-409.06659975,0.00013698,2]
[346471688,1734988238690,-500.0,0.00013698,2]
[346471689,1734988238700,-500.0,0.00013698,2]
[346471690,1734988238709,-878.68,0.00013698,2]
[346471691,1734988238719,-901.75,0.00013698,2]
[346471692,1734988238728,-500.0,0.00013698,2]
[346471693,1734988238737,-277.94542056,0.00013698,2]
[346471694,1734988238746,-500.0,0.00013698,2]
[346471695,1734988238756,-500.0,0.00013698,2]
[346471696,1734988238766,-500.0,0.00013698,2]
[346471697,1734988238775,-500.0,0.00013698,2]
[346471698,1734988238785,-500.0,0.00013698,2]
[346471699,1734988238794,-500.0,0.00013698,2]
[346471700,1734988238804,-500.0,0.00013698,2]
[346471701,1734988238814,-500.0,0.00013698,2]
[346471702,1734988238824,-500.0,0.00013698,2]
[346471703,1734988238833,-500.0,0.00013698,2]
[346471704,1734988238842,-500.0,0.00013698,2]
[346471705,1734988238852,-1266.51,0.00013698,2]
[346471706,1734988238862,-500.0,0.00013698,2]
[346471707,1734988238872,-500.0,0.00013698,2]
[346471708,1734988238882,-1356.87,0.00013698,2]
[346471709,1734988238891,-500.0,0.00013698,2]
[346471710,1734988238901,-856.25,0.00013698,2]
[346471711,1734988238910,-1186.75,0.00013698,2]
[346471712,1734988238922,-500.0,0.00013698,2]
[346471713,1734988238932,-500.0,0.00013698,2]
[346471714,1734988238942,-504.83814396,0.00013698,2]
[346471715,1734988238951,-500.0,0.00013698,2]
[346471716,1734988238960,-1043.58,0.00013698,2]
[346471717,1734988238970,-634.06029867,0.00013698,2]
[346471718,1734988238980,-500.0,0.00013698,2]
[346471719,1734988238991,-1983.29,0.00013698,2]
[346471720,1734988239001,-500.0,0.00013698,2]
[346471721,1734988239011,-500.0,0.00013698,2]
[346471722,1734988239021,-500.0,0.00013698,2]
[346471723,1734988239031,-633.41,0.00013698,2]
[346471724,1734988239041,-1443.99,0.00013698,2]
[346471725,1734988239050,-500.0,0.00013698,2]
[346471726,1734988239060,-500.0,0.00013698,2]
[346471727,1734988239070,-500.0,0.00013698,2]
[346471728,1734988239079,-500.0,0.00013698,2]
[346471729,1734988239089,-500.0,0.00013698,2]
[346471730,1734988239098,-500.48496846,0.00013698,2]
[346471731,1734988239108,-500.0,0.00013698,2]
[346471732,1734988239117,-500.0,0.00013698,2]
[346471733,1734988239127,-500.0,0.00013698,2]
[346471734,1734988239136,-500.0,0.00013698,2]
[346471735,1734988239145,-1761.84,0.00013698,2]
[346471736,1734988239154,-569.82,0.00013698,2]
[346471737,1734988239164,-500.0,0.00013698,2]
[346471738,1734988239175,-500.0,0.00013698,2]
[346471739,1734988239184,-846.67,0.00013698,2]
[346471740,1734988239194,-501.28807021,0.00013698,2]
[346471741,1734988239202,-500.0,0.00013698,2]
[346471742,1734988239212,-500.0,0.00013698,2]
[346471743,1734988239222,-500.0,0.00013698,2]
[346471744,1734988239231,-518.26,0.00013698,2]
[346471745,1734988239240,-516.88,0.00013698,2]
[346471746,1734988239249,-500.0,0.00013698,2]
[346471747,1734988239258,-500.0,0.00013698,2]
[346471748,1734988239267,-500.0,0.00013698,2]
[346471749,1734988239275,-500.0,0.00013698,2]
[346471750,1734988239285,-500.0,0.00013698,2]
[346471751,1734988239294,-500.0,0.00013698,2]
[346471752,1734988239303,-500.0,0.00013698,2]
[346471753,1734988239312,-500.0,0.00013698,2]
[346471754,1734988239321,-500.0,0.00013698,2]
[346471755,1734988239330,-500.0,0.00013698,2]
[346471756,1734988239339,-500.0,0.00013698,2]
[346471757,1734988239348,-1173.34,0.00013698,2]
[346471758,1734988239357,-535.11,0.00013698,2]
[346471759,1734988239366,-500.0,0.00013698,2]
[346471760,1734988239375,-500.0,0.00013698,2]
[346471761,1734988239385,-1466.61,0.00013698,2]
[346471762,1734988239394,-500.0,0.00013698,2]
[346471763,1734988239403,-559.57,0.00013698,2]
[346471764,1734988239412,-500.0,0.00013698,2]
[346471765,1734988239422,-1892.8,0.00013698,2]
[346471766,1734988239431,-500.0,0.00013698,2]
[346471767,1734988239440,-292.37392117,0.00013698,2]
[346471768,1734988239449,-762.2,0.00013698,2]
[346471769,1734988239458,-857.72,0.00013698,2]
[346471770,1734988239467,-500.0,0.00013698,2]
[346471771,1734988239476,-500.0,0.00013698,2]
[346471772,1734988239485,-500.0,0.00013698,2]
[346471773,1734988239495,-497.76778129,0.00013698,2]
[346471774,1734988239503,-500.0,0.00013698,2]
[346471775,1734988239513,-1100.36,0.00013698,2]
[346471776,1734988239522,-888.58,0.00013698,2]
[346471777,1734988239531,-937.85,0.00013698,2]
[346471778,1734988239540,-500.0,0.00013698,2]
[346471779,1734988239549,-536.36,0.00013698,2]
[346471780,1734988239558,-500.0,0.00013698,2]
[346471781,1734988239567,-500.0,0.00013698,2]
[346471782,1734988239577,-866.22,0.00013698,2]
[346471783,1734988239586,-500.0,0.00013698,2]
[346471784,1734988239595,-500.0,0.00013698,2]
[346471785,1734988239606,-504.10622799,0.00013698,2]
[346471786,1734988239616,-500.0,0.00013698,2]
[346471787,1734988239625,-587.1,0.00013698,2]
[346471788,1734988239634,-308.28275337,0.00013698,2]
[346471789,1734988239644,-500.0,0.00013698,2]
[346471790,1734988239654,-500.0,0.00013698,2]
[346471791,1734988239663,-500.0,0.00013698,2]
[346471792,1734988239674,-500.0,0.00013698,2]
[346471793,1734988239685,-500.0,0.00013698,2]
[346471794,1734988239694,-500.0,0.00013698,2]
[346471795,1734988239704,-500.0,0.00013698,2]
[346471796,1734988239713,-500.0,0.00013698,2]
[346471797,1734988239722,-500.0,0.00013698,2]
[346471798,1734988239731,-708.34,0.00013698,2]
[346471799,1734988239741,-1038.55,0.00013698,2]